fUSD/lending_fUSD_20250205
["ID","MTS","AMOUNT","RATE_DAILY","PERIOD"]
[351803825,1738792283569,-4807.15,0.000186,31]
[351803826,1738792283579,-4807.15,0.000186,31]
[351803827,1738792283589,-4807.15,0.000186,31]
[351803828,1738792283599,-4807.15,0.000186,31]
[351803829,1738792283609,-4807.15,0.000186,31]
[351803830,1738792283618,-4807.15,0.000186,31]
[351803831,1738792283628,-4807.15,0.000186,31]
[351803832,1738792283638,-4807.15,0.000186,31]
[351803833,1738792283648,-4807.15,0.000186,31]
[351803834,1738792283658,-4807.15,0.000186,31]
[351803835,1738792283667,-4807.15,0.000186,31]
[351803836,1738792283677,-4807.15,0.000186,31]
[351803837,1738792283687,-4807.15,0.000186,31]
[351803838,1738792283697,-4807.15,0.000186,31]
[351803839,1738792283707,-4807.15,0.000186,31]
[351803840,1738792283717,-4807.15,0.000186,31]
[351803841,1738792283726,-4807.15,0.000186,31]
[351803842,1738792283736,-4807.15,0.000186,31]
[351803843,1738792283746,-4807.15,0.000186,31]
[351803844,1738792283756,-4807.15,0.000186,31]
[351803845,1738792283765,-4807.15,0.000186,31]
[351803846,1738792283775,-4807.15,0.000186,31]
[351803847,1738792283784,-185.56,0.0001863,2]
[351803848,1738792283794,-500.0,0.00018665,2]
[351803849,1738792283804,-10046.37874407,0.0001868,2]
[351803850,1738792283813,-1176.88821,0.00018688,7]
[351803851,1738792283823,-2000.0,0.00018751,2]
[351803852,1738792283834,-500.0,0.00018765,2]
[351803853,1738792283948,-185.56,0.00018767,2]
[351803854,1738792283959,-1212.0,0.000188,2]
[351803855,1738792283969,-1814254.68532001,0.000188,2]
[351803856,1738792283979,-500.0,0.00018865,2]
[351803857,1738792283989,-1069.30364705,0.00018876,2]
[351803858,1738792283998,-4000.0,0.00018884,5]
[351803859,1738792284009,-5560.88979032,0.00018888,2]
[351803860,1738792284019,-25600.83659566,0.000189,2]
[351803861,1738792284028,-7351.47,0.000189,2]
[351803862,1738792284042,-150.82975075,0.000189,2]
[351803863,1738792284052,-26560.8618401,0.000189,14]
[351803864,1738792284062,-185.56,0.00018904,2]
[351803865,1738792284072,-500.0,0.00018965,2]
[351803866,1738792284084,-19530.93,0.00019,5]
[351803867,1738792284094,-10000.0,0.00019,2]
[351803868,1738792284104,-800.0,0.00019,5]
[351803869,1738792284115,-57147.28803847,0.00019,3]
[351803870,1738792284125,-53554.91071097,0.00019,2]
[351803871,1738792284135,-961.61,0.00019,2]
[351803872,1738792284144,-10336.2531127,0.00019,2]
[351803873,1738792284154,-15205.13361423,0.00019,2]
[351803874,1738792284164,-91022.84239846,0.00019,2]
[351803875,1738792284174,-7594.1243379,0.00019,2]
[351803876,1738792284184,-17549.61911861,0.00019,3]
[351803877,1738792284193,-900.0,0.00019,20]
[351803878,1738792284203,-1200.0,0.00019,30]
[351803879,1738792284214,-10000.0,0.00019,2]
[351803880,1738792284223,-330.18875,0.00019,6]
[351803881,1738792284233,-700.0,0.00019,2]
[351803882,1738792284243,-700.0,0.00019,2]
[351803883,1738792284253,-500.0,0.00019,2]
[351803884,1738792284263,-340.70232079,0.0001901,7]
[351803885,1738792284273,-805.58386698,0.00019012,2]
[351803886,1738792284283,-1000.0,0.0001902,2]
[351803887,1738792284292,-185.56,0.00019041,2]
[351803888,1738792284302,-500.0,0.00019065,2]
[351803889,1738792284312,-153.0,0.00019084,2]
[351803890,1738792284322,-153.0,0.00019092,2]
[351803891,1738792284332,-153.0,0.00019099,2]
[351803892,1738792284342,-153.0,0.000191,2]
[351803893,1738792284352,-5070.85617574,0.0001911,2]
[351803894,1738792284363,-11907.18,0.00019151,2]
[351803895,1738792284372,-500.0,0.00019165,2]
[351803896,1738792284383,-185.56,0.00019178,2]
[351803897,1738792284393,-500.0,0.00019178,30]
[351803898,1738792284402,-280.96040122,0.00019178,30]
[351803899,1738792284412,-500.0,0.00019178,7]
[351803900,1738792284422,-500.0,0.00019178,7]
[351803901,1738792284431,-500.0,0.00019178,7]
[351803902,1738792284441,-500.0,0.00019178,7]
[351803903,1738792284450,-500.0,0.00019178,7]
[351803904,1738792284460,-500.0,0.00019178,7]
[351803905,1738792284470,-500.0,0.00019178,7]
[351803906,1738792284479,-500.0,0.00019178,7]
[351803907,1738792284489,-363.5328154,0.00019178,7]
[351803908,1738792284499,-862.34873186,0.00019178,2]
[351803909,1738792284509,-150.0,0.00019178,2]
[351803910,1738792284520,-150.0,0.00019178,2]
[351803911,1738792284529,-3231.09,0.00019178,2]
[351803912,1738792284539,-2517.19,0.00019242,30]
[351803913,1738792284550,-500.0,0.00019265,2]
[351803914,1738792284559,-2719.33002217,0.00019276,14]
[351803915,1738792284570,-222803.03492475,0.000193,2]
[351803916,1738792284580,-185.56,0.00019315,2]
[351803917,1738792284590,-500.0,0.00019365,2]
[351803918,1738792284600,-1092.09,0.00019398,2]
[351803919,1738792284609,-23354.31258716,0.00019401,2]
[351803920,1738792284619,-2000.0,0.0001942,2]
[351803921,1738792284628,-185.56,0.00019452,2]
[351803922,1738792284638,-1803.03,0.00019452,6]
[351803923,1738792284648,-2842.62605583,0.00019456,5]
[351803924,1738792284657,-500.0,0.00019465,2]
[351803925,1738792284667,-1442.88,0.00019479,2]
[351803926,1738792284678,-1442.88,0.00019479,2]
[351803927,1738792284688,-1442.88,0.00019479,2]
[351803928,1738792284698,-1442.88,0.00019479,2]
[351803929,1738792284708,-1442.88,0.00019479,2]
[351803930,1738792284718,-1442.88,0.00019479,2]
[351803931,1738792284728,-1442.88,0.00019479,2]
[351803932,1738792284738,-1442.88,0.00019479,2]
[351803933,1738792284747,-1442.88,0.00019479,2]
[351803934,1738792284757,-1442.88,0.00019479,2]
[351803935,1738792284768,-1442.88,0.00019479,2]
[351803936,1738792284778,-1442.88,0.00019479,2]
[351803937,1738792284787,-1442.88,0.00019479,2]
[351803938,1738792284797,-1442.88,0.00019479,2]
[351803939,1738792284807,-1442.88,0.00019479,2]
[351803940,1738792284817,-1442.88,0.00019479,2]
[351803941,1738792284827,-1442.88,0.00019479,2]
[351803942,1738792284836,-1442.88,0.00019479,2]
[351803943,1738792284845,-1442.88,0.00019479,2]
[351803944,1738792284855,-1442.88,0.00019479,2]
[351803945,1738792284865,-1442.88,0.00019479,2]
[351803946,1738792284875,-1442.88,0.00019479,2]
[351803947,1738792284885,-1442.88,0.00019479,2]
[351803948,1738792284895,-1443.00304711,0.00019479,2]
[351803949,1738792284905,-500.0,0.00019565,2]
[351803950,1738792284915,-185.79713396,0.00019589,2]
[351803951,1738792284925,-65235.5241,0.000196,2]
[351803952,1738792284936,-3288.81633997,0.0001961,2]
[351803953,1738792284945,-220.34,0.00019658,2]
[351803954,1738792284955,-500.0,0.00019665,2]
[351803955,1738792284965,-150.0,0.00019683,2]
[351803956,1738792284975,-7351.47,0.000197,2]
[351803957,1738792284984,-150.0,0.00019726,2]
[351803958,1738792284994,-500.0,0.00019765,2]
[351803959,1738792285004,-3421.46185995,0.000198,2]
[351803960,1738792285015,-6713555.69253775,0.000198,2]
[351803961,1738792285024,-2500.0,0.00019825,2]
[351803962,1738792285034,-1290.10750436,0.00019829,2]
[351803963,1738792285048,-81842.00708657,0.00019859,2]
[351803964,1738792285058,-500.0,0.00019865,2]
[351803965,1738792285067,-3004.45451337,0.0001987,2]
[351803966,1738792285077,-87762.24,0.0001987,2]
[351803967,1738792285088,-4695.30548134,0.000199,3]
[351803968,1738792285098,-231680.73136701,0.000199,7]
[351803969,1738792285108,-10957.42643869,0.000199,5]
[351803970,1738792285119,-80499.79272273,0.000199,7]
[351803971,1738792285129,-162.97842402,0.000199,10]
[351803972,1738792285139,-179.18414601,0.000199,2]
[351803973,1738792285149,-179.18414599,0.000199,2]
[351803974,1738792285159,-179.18414599,0.000199,2]
[351803975,1738792285170,-500.0,0.00019965,2]
[351803976,1738792285180,-514.0,0.0001997,2]
[351803977,1738792285190,-774.8,0.0001998,2]
[351803978,1738792285200,-439.5,0.0001998,2]
[351803979,1738792285211,-774.8,0.0001998,2]
[351803980,1738792285221,-439.5,0.0001998,2]
[351803981,1738792285231,-774.8,0.0001998,2]
[351803982,1738792285241,-439.5,0.0001998,2]
[351803983,1738792285251,-295.74,0.0001998,2]
[351803984,1738792285262,-12021.27161329,0.0002,5]
[351803985,1738792285272,-7481.578799,0.0002,7]
[351803986,1738792285283,-2799.153985,0.0002,7]
[351803987,1738792285293,-1423.046321,0.0002,7]
[351803988,1738792285303,-20097.0,0.0002,7]
[351803989,1738792285313,-2999.96,0.0002,2]
[351803990,1738792285323,-3000.0,0.0002,2]
[351803991,1738792285333,-3023.89,0.0002,2]
[351803992,1738792285342,-380.0,0.0002,2]
[351803993,1738792285352,-41657.84154852,0.0002,2]
[351803994,1738792285362,-300.0,0.0002,2]
[351803995,1738792285372,-300.0,0.0002,2]
[351803996,1738792285383,-300.0,0.0002,2]
[351803997,1738792285393,-530.95268598,0.0002,2]
[351803998,1738792285403,-91094.64017449,0.0002,2]
[351803999,1738792285413,-139010.18579325,0.0002,2]
[351804000,1738792285422,-298.39636001,0.0002,2]
[351804001,1738792285432,-1468.95387141,0.0002,2]
[351804002,1738792285442,-4263.10820035,0.0002,2]
[351804003,1738792285451,-7500.0,0.0002,2]
[351804004,1738792285462,-3833.93061435,0.0002,2]
[351804005,1738792285471,-1240.04889521,0.0002,2]
[351804006,1738792285481,-1013.0,0.0002,6]
[351804007,1738792285491,-1000.50993229,0.0002,2]
[351804008,1738792285501,-2149.83870908,0.0002,2]
[351804009,1738792285604,-2999.93,0.0002,2]
[351804010,1738792285614,-2999.99,0.0002,2]
[351804011,1738792285624,-1348.01,0.0002,2]
[351804012,1738792285634,-26256.9320249,0.0002,2]
[351804013,1738792285644,-900.0,0.0002,21]
[351804014,1738792285654,-8300.0,0.0002,4]
[351804015,1738792285664,-300.02756279,0.0002,2]
[351804016,1738792285674,-225008.82324294,0.0002,14]
[351804017,1738792285683,-105186.22746906,0.0002,4]
[351804018,1738792285693,-175391.91419359,0.0002,4]
[351804019,1738792285702,-472.08486592,0.0002,10]
[351804020,1738792285712,-166.30108662,0.0002,2]
[351804021,1738792285722,-17762.93619339,0.0002,2]
[351804022,1738792285733,-50000.0,0.0002,2]
[351804023,1738792285743,-45742.16649125,0.0002,2]
[351804024,1738792285753,-6093.86166518,0.0002,2]
[351804025,1738792285763,-3950.0,0.0002,2]
[351804026,1738792285773,-11730.4320068,0.0002,2]
[351804027,1738792285783,-800.0,0.0002,10]
[351804028,1738792285793,-105749.33744266,0.0002,2]
[351804029,1738792285803,-479444.78378912,0.0002,2]
[351804030,1738792285812,-422.0,0.0002,10]
[351804031,1738792285821,-160.6123011,0.0002,15]
[351804032,1738792285831,-70556.69118409,0.0002,4]
[351804033,1738792285841,-8000.0,0.0002,4]
[351804034,1738792285851,-202.66725452,0.0002,60]
[351804035,1738792285861,-2568.34495154,0.0002,2]
[351804036,1738792285871,-166.28897385,0.0002,2]
[351804037,1738792285882,-33181.04597491,0.0002,15]
[351804038,1738792285891,-4000.0,0.0002,2]
[351804039,1738792285900,-10000.0,0.0002,10]
[351804040,1738792285910,-900.0,0.0002,2]
[351804041,1738792285919,-100000.0,0.0002,5]
[351804042,1738792285929,-1511.74191673,0.0002,30]
[351804043,1738792285939,-4769.89698973,0.0002,30]
[351804044,1738792285949,-3000.03854,0.0002,31]
[351804045,1738792285959,-1394.72396478,0.0002,5]
[351804046,1738792285968,-159.8405304,0.0002,2]
[351804047,1738792285979,-4983.0,0.0002,15]
[351804048,1738792285989,-3854.17445268,0.0002,30]
[351804049,1738792286000,-200.0,0.0002,5]
[351804050,1738792286010,-5000.0,0.0002,30]
[351804051,1738792286020,-5059.0,0.0002,30]
[351804052,1738792286029,-11417.33930978,0.0002,30]
[351804053,1738792286040,-1219.260203,0.0002,10]
[351804054,1738792286053,-245.94621896,0.0002,30]
[351804055,1738792286063,-501.92519316,0.0002,7]
[351804056,1738792286074,-1033.16025289,0.0002,30]
[351804057,1738792286086,-3712.34528072,0.0002,2]
[351804058,1738792286096,-4272.13124828,0.0002,30]
[351804059,1738792286106,-484.60142761,0.0002,30]
[351804060,1738792286116,-2177.0,0.0002,4]
[351804061,1738792286127,-70000.0,0.0002,30]
[351804062,1738792286136,-10618.43983735,0.0002,30]
[351804063,1738792286147,-170000.0,0.0002,30]
[351804064,1738792286157,-75493.99417557,0.0002,30]
[351804065,1738792286167,-164.64568683,0.0002,2]
[351804066,1738792286176,-2110.0,0.0002,2]
[351804067,1738792286186,-18346.86173985,0.0002,30]
[351804068,1738792286197,-905.083,0.0002,2]
[351804069,1738792286207,-2000.0,0.0002,2]
[351804070,1738792286216,-2000.0,0.0002,2]
[351804071,1738792286225,-2000.0,0.0002,2]
[351804072,1738792286235,-105867.17777268,0.0002,30]
[351804073,1738792286246,-2000.0,0.0002,2]
[351804074,1738792286256,-2000.0,0.0002,2]
[351804075,1738792286266,-2000.0,0.0002,2]
[351804076,1738792286276,-2000.0779,0.0002,2]
[351804077,1738792286287,-2000.0,0.0002,2]
[351804078,1738792286297,-10000.0,0.0002,2]
[351804079,1738792286308,-10000.0,0.0002,2]
[351804080,1738792286322,-9349.08,0.0002,2]
[351804081,1738792286340,-10000.0,0.0002,2]
[351804082,1738792286360,-10000.0,0.0002,2]
[351804083,1738792286380,-402.46069134,0.0002,2]
[351804084,1738792286395,-241.4764148,0.0002,2]
[351804085,1738792286412,-160.98427654,0.0002,2]
[351804086,1738792286432,-10000.0,0.0002,2]
[351804087,1738792286451,-12500.0,0.0002,2]
[351804088,1738792286472,-2298.35,0.0002,2]
[351804089,1738792286490,-1196.49,0.0002,2]
[351804090,1738792286509,-500.0,0.0002,2]
[351804091,1738792286526,-503.699971,0.0002,30]
[351804092,1738792286544,-413.73,0.0002,2]
[351804093,1738792286562,-159.0,0.0002,2]
[351804094,1738792286579,-159.0,0.0002,2]
[351804095,1738792286593,-367.8,0.0002,2]
[351804096,1738792286609,-1000.0,0.0002,2]
[351804097,1738792286625,-150.0,0.0002,2]
[351804098,1738792286641,-3141.090694,0.0002001,2]
[351804099,1738792286657,-3141.090694,0.0002001,2]
[351804100,1738792286673,-2000.0,0.0002001,2]
[351804101,1738792286688,-3968.690576,0.0002002,2]
[351804102,1738792286704,-150.0,0.00020037,120]
[351804103,1738792286719,-2565.25,0.00020041,2]
[351804104,1738792286736,-500.0,0.00020065,2]
[351804105,1738792286751,-2523.32142619,0.00020074,2]
[351804106,1738792286767,-2523.32142619,0.00020074,2]
[351804107,1738792286782,-2523.32142619,0.00020074,2]
[351804108,1738792286798,-2523.32142619,0.00020074,2]
[351804109,1738792286813,-2523.32142619,0.00020074,2]
[351804110,1738792286828,-2523.32142619,0.00020074,2]
[351804111,1738792286844,-2523.32142619,0.00020074,2]
[351804112,1738792286859,-2523.32142619,0.00020074,2]
[351804113,1738792286874,-2523.32142619,0.00020074,2]
[351804114,1738792286889,-2523.32142619,0.00020074,2]
[351804115,1738792286903,-2523.32142619,0.00020074,2]
[351804116,1738792286919,-2523.32142619,0.00020074,2]
[351804117,1738792286934,-2523.32142619,0.00020074,2]
[351804118,1738792286948,-2523.32142619,0.00020074,2]
[351804119,1738792286964,-2523.32142619,0.00020074,2]
[351804120,1738792286978,-2523.32142619,0.00020074,2]
[351804121,1738792286993,-2523.32142619,0.00020074,2]
[351804122,1738792287009,-2523.32142619,0.00020074,2]
[351804123,1738792287025,-2523.32142619,0.00020074,2]
[351804124,1738792287042,-2523.32,0.00020074,2]
[351804125,1738792287058,-2523.8300738,0.00020074,2]
[351804126,1738792287073,-2523.8300738,0.00020074,2]
[351804127,1738792287091,-2523.8300738,0.00020074,2]
[351804128,1738792287106,-2523.8300738,0.00020074,2]
[351804129,1738792287121,-2523.8300738,0.00020074,2]
[351804130,1738792287136,-2523.8300738,0.00020074,2]
[351804131,1738792287152,-2523.8300738,0.00020074,2]
[351804132,1738792287167,-2523.8300738,0.00020074,2]
[351804133,1738792287182,-2523.8300738,0.00020074,2]
[351804134,1738792287197,-2523.8300738,0.00020074,2]
[351804135,1738792287212,-2523.8300738,0.00020074,2]
[351804136,1738792287227,-2523.8300738,0.00020074,2]
[351804137,1738792287242,-2523.8300738,0.00020074,2]
[351804138,1738792287257,-2523.8300738,0.00020074,2]
[351804139,1738792287272,-2523.8300738,0.00020074,2]
[351804140,1738792287287,-2523.8300738,0.00020074,2]
[351804141,1738792287302,-2523.8300738,0.00020074,2]
[351804142,1738792287317,-2523.8300738,0.00020074,2]
[351804143,1738792287332,-2523.8300738,0.00020074,2]
[351804144,1738792287347,-2523.83,0.00020074,2]
[351804145,1738792287362,-1387.10846993,0.00020074,2]
[351804146,1738792287377,-1387.10846993,0.00020074,2]
[351804147,1738792287393,-1387.10846993,0.00020074,2]
[351804148,1738792287408,-1387.10846993,0.00020074,2]
[351804149,1738792287423,-1387.10846993,0.00020074,2]
[351804150,1738792287438,-1387.10846993,0.00020074,2]
[351804151,1738792287453,-1387.10846993,0.00020074,2]
[351804152,1738792287601,-1387.10846993,0.00020074,2]
[351804153,1738792287617,-1387.10846993,0.00020074,2]
[351804154,1738792287627,-1387.10846993,0.00020074,2]
[351804155,1738792287637,-1387.10846993,0.00020074,2]
[351804156,1738792287646,-1387.10846993,0.00020074,2]
[351804157,1738792287656,-1387.10846993,0.00020074,2]
[351804158,1738792287665,-1387.10846993,0.00020074,2]
[351804159,1738792287674,-1387.10846993,0.00020074,2]
[351804160,1738792287683,-1387.10846993,0.00020074,2]
[351804161,1738792287693,-1387.10846993,0.00020074,2]
[351804162,1738792287703,-1387.10846993,0.00020074,2]
[351804163,1738792287712,-1387.10846993,0.00020074,2]
[351804164,1738792287722,-1387.1,0.00020074,2]
[351804165,1738792287732,-2000.0,0.00020089,2]
[351804166,1738792287742,-3004.91,0.00020093,2]
[351804167,1738792287752,-10000.0,0.00020107,2]
[351804168,1738792287762,-987.33,0.00020107,2]
[351804169,1738792287772,-10000.0,0.00020107,2]
[351804170,1738792287782,-179.49,0.00020109,2]
[351804171,1738792287791,-11715.80707602,0.0002011,2]
[351804172,1738792287801,-649.44758527,0.0002012,2]
[351804173,1738792287811,-2600.0,0.0002012,2]
[351804174,1738792287820,-2600.0,0.0002012,2]
[351804175,1738792287829,-2600.0,0.0002012,2]
[351804176,1738792287839,-2600.0,0.0002012,2]
[351804177,1738792287848,-2600.0,0.0002012,2]
[351804178,1738792287859,-2600.0,0.0002012,2]
[351804179,1738792287868,-2600.0,0.0002012,2]
[351804180,1738792287878,-2600.0,0.0002012,2]
[351804181,1738792287888,-2600.0,0.0002012,2]
[351804182,1738792287898,-2600.0,0.0002012,2]
[351804183,1738792287907,-2600.0,0.0002012,2]
[351804184,1738792287916,-2600.0,0.0002012,2]
[351804185,1738792287926,-2600.0,0.0002012,2]
[351804186,1738792287935,-4352.60849997,0.0002012,2]
[351804187,1738792287944,-500.0,0.0002012,2]
[351804188,1738792287954,-500.0,0.0002012,2]
[351804189,1738792287963,-500.0,0.0002012,2]
[351804190,1738792287973,-500.0,0.0002012,2]
[351804191,1738792287983,-585.97722909,0.0002012,2]
[351804192,1738792287993,-761.25156146,0.0002012,2]
[351804193,1738792288002,-1400.0,0.0002012,2]
[351804194,1738792288011,-1400.0,0.0002012,2]
[351804195,1738792288022,-1400.0,0.0002012,2]
[351804196,1738792288032,-1400.0,0.0002012,2]
[351804197,1738792288045,-1400.0,0.0002012,2]
[351804198,1738792288055,-1400.0,0.0002012,2]
[351804199,1738792288064,-1400.0,0.0002012,2]
[351804200,1738792288074,-1400.0,0.0002012,2]
[351804201,1738792288084,-1400.0,0.0002012,2]
[351804202,1738792288095,-1400.0,0.0002012,2]
[351804203,1738792288105,-500.0,0.0002012,2]
[351804204,1738792288115,-500.0,0.0002012,2]
[351804205,1738792288126,-1400.0,0.0002012,2]
[351804206,1738792288136,-500.0,0.0002012,2]
[351804207,1738792288146,-500.0,0.0002012,2]
[351804208,1738792288156,-1400.0,0.0002012,2]
[351804209,1738792288165,-500.0,0.0002012,2]
[351804210,1738792288176,-541.32338863,0.0002012,2]
[351804211,1738792288186,-1400.0,0.0002012,2]
[351804212,1738792288196,-500.0,0.0002012,2]
[351804213,1738792288206,-1541.84222577,0.0002012,2]
[351804214,1738792288216,-500.0,0.0002012,2]
[351804215,1738792288225,-500.0,0.0002012,2]
[351804216,1738792288235,-500.0,0.0002012,2]
[351804217,1738792288244,-500.0,0.0002012,2]
[351804218,1738792288254,-500.0,0.0002012,2]
[351804219,1738792288264,-500.0,0.0002012,2]
[351804220,1738792288276,-988.60358153,0.0002012,2]
[351804221,1738792288286,-500.0,0.0002012,2]
[351804222,1738792288296,-500.0,0.0002012,2]
[351804223,1738792288306,-500.0,0.0002012,2]
[351804224,1738792288314,-500.0,0.0002012,2]
[351804225,1738792288324,-985.95905579,0.0002012,2]
[351804226,1738792288334,-500.0,0.0002012,2]
[351804227,1738792288344,-500.0,0.0002012,2]
[351804228,1738792288353,-543.39919937,0.0002012,2]
[351804229,1738792288363,-500.0,0.0002012,2]
[351804230,1738792288373,-500.0,0.0002012,2]
[351804231,1738792288382,-500.0,0.0002012,2]
[351804232,1738792288391,-500.0,0.0002012,2]
[351804233,1738792288401,-500.0,0.0002012,2]
[351804234,1738792288410,-500.0,0.0002012,2]
[351804235,1738792288420,-500.0,0.0002012,2]
[351804236,1738792288430,-500.000001,0.0002012,2]
[351804237,1738792288439,-500.0,0.0002012,2]
[351804238,1738792288449,-1100.0,0.0002012,2]
[351804239,1738792288458,-1100.0,0.0002012,2]
[351804240,1738792288468,-500.0,0.0002012,2]
[351804241,1738792288479,-1100.0,0.0002012,2]
[351804242,1738792288488,-500.0,0.0002012,2]
[351804243,1738792288498,-500.0,0.0002012,2]
[351804244,1738792288508,-1100.0,0.0002012,2]
[351804245,1738792288520,-1100.0,0.0002012,2]
[351804246,1738792288529,-732.30947375,0.0002012,2]
[351804247,1738792288539,-1100.0,0.0002012,2]
[351804248,1738792288548,-700.0,0.0002012,2]
[351804249,1738792288558,-1100.0,0.0002012,2]
[351804250,1738792288567,-700.0,0.0002012,2]
[351804251,1738792288577,-700.0,0.0002012,2]
[351804252,1738792288587,-700.0,0.0002012,2]
[351804253,1738792288597,-700.0,0.0002012,2]
[351804254,1738792288607,-700.0,0.0002012,2]
[351804255,1738792288618,-700.0,0.0002012,2]
[351804256,1738792288628,-1100.0,0.0002012,2]
[351804257,1738792288638,-700.0,0.0002012,2]
[351804258,1738792288647,-700.0,0.0002012,2]
[351804259,1738792288657,-1100.0,0.0002012,2]
[351804260,1738792288667,-700.0,0.0002012,2]
[351804261,1738792288677,-1100.0,0.0002012,2]
[351804262,1738792288686,-1100.0,0.0002012,2]
[351804263,1738792288696,-700.0,0.0002012,2]
[351804264,1738792288705,-1100.0,0.0002012,2]
[351804265,1738792288715,-700.0,0.0002012,2]
[351804266,1738792288724,-1423.20136603,0.0002012,2]
[351804267,1738792288734,-700.0,0.0002012,2]
[351804268,1738792288744,-1099.54755567,0.0002012,2]
[351804269,1738792288754,-500.0,0.0002012,2]
[351804270,1738792288763,-540.61208977,0.0002012,2]
[351804271,1738792288775,-5000.0,0.00020138,2]
[351804272,1738792288785,-2252.99,0.00020145,2]
[351804273,1738792288794,-25000.0,0.00020153,2]
[351804274,1738792288803,-5000.0,0.00020162,2]
[351804275,1738792288813,-500.0,0.00020165,2]
[351804276,1738792288822,-1075858.71216467,0.00020174,30]
[351804277,1738792288831,-6807112.82009365,0.00020174,30]
[351804278,1738792289196,-500.0,9.999e-05,2]
[351804279,1738792289206,-500.0,0.00010136,2]
[351804280,1738792289216,-500.0,0.00010272,2]
[351804281,1738792289225,-354.93,0.00010273,2]
[351804282,1738792289235,-250.0,0.0001086,2]
[351804283,1738792289244,-1324.98670483,0.0002,2]
[351804284,1738792289257,-8899.27288784,0.0002,2]
[351804285,1738792289271,-2275.74040733,0.0002,2]
[351804286,1738792289281,-7309.28068219,0.0002004,2]
[351804287,1738792289302,-5190.71931781,0.0002004,2]
[351804288,1738792289311,-12500.0,0.0002008,2]
[351804289,1738792289320,-1023.07407713,0.0002012,2]
[351804290,1738792289332,-9580.21909016,0.0002012,2]
[351804291,1738792289343,-1896.70683271,0.0002012,2]
[351804292,1738792289352,-34238.70655195,0.00020174,30]
[351804293,1738792289364,-10528.0,0.00020174,30]
[351804294,1738792289876,-500.0,9.999e-05,2]
[351804295,1738792289886,-500.0,9.999e-05,2]
[351804296,1738792289896,-500.0,9.999e-05,2]
[351804297,1738792289906,-382.41,0.00010136,2]
[351804298,1738792289916,-150.0,0.00011729,2]
[351804299,1738792289926,-151.0,0.00012329,2]
[351804300,1738792289936,-151.0,0.00012329,2]
[351804301,1738792289947,-150.0,0.00014729,2]
[351804302,1738792289957,-78.29000023,0.00019063,2]
[351804303,1738792289984,-151.0,0.00012329,2]
[351804304,1738792289994,-74.70999977,0.00019063,2]
[351804305,1738792290004,-173.83500027,0.0002016,2]
[351804306,1738792290016,-9327.50138558,0.0002016,2]
[351804307,1738792290027,-2998.66361415,0.0002016,2]
[351804308,1738792290037,-24433.16236985,0.00020174,30]
[351804309,1738792290222,-774.8,0.00011041,2]
[351804310,1738792290233,-439.5,0.00011041,2]
[351804311,1738792290243,-150.0,0.00011178,2]
[351804312,1738792290253,-150.0,0.00011178,2]
[351804313,1738792290263,-150.0,0.00011178,2]
[351804314,1738792290274,-438.59,0.00011178,2]
[351804315,1738792290284,-151.0,0.00012329,2]
[351804316,1738792290294,-151.0,0.00012329,2]
[351804317,1738792290305,-151.0,0.00012329,2]
[351804318,1738792290314,-294.314404,0.00012329,2]
[351804319,1738792290324,-1457.36568284,0.00020174,30]
[351804320,1738792290337,-1248.46002,0.00020174,30]
[351804321,1738792298223,2500.0,0.00010272,120]
[351804322,1738792298489,2500.0,0.00010409,120]
[351804323,1738792298763,2500.0,0.00010546,120]
[351804324,1738792299009,179.00616237,0.00010683,120]